fUST/lending_fUST_20241227
["ID","MTS","AMOUNT","RATE_DAILY","PERIOD"]
[346714106,1735231839004,-500.0,0.00016991,2]
[346714107,1735231839014,-500.0,0.00016991,2]
[346714108,1735231839024,-346.01707819,0.00016991,2]
[346714109,1735231839034,-500.0,0.00016991,2]
[346714110,1735231839044,-304.53,0.00016991,2]
[346714111,1735231839054,-729.96,0.00016991,2]
[346714112,1735231839063,-500.0,0.00016991,2]
[346714113,1735231839074,-500.0,0.00016991,2]
[346714114,1735231839083,-500.0,0.00016991,2]
[346714115,1735231839094,-500.0,0.00016991,2]
[346714116,1735231839103,-500.0,0.00016991,2]
[346714117,1735231839113,-15289.3,0.00016991,2]
[346714118,1735231839123,-500.0,0.00016991,2]
[346714119,1735231839133,-500.0,0.00016991,2]
[346714120,1735231839143,-500.0,0.00016991,2]
[346714121,1735231839153,-500.0,0.00016991,2]
[346714122,1735231839163,-551.49,0.00016991,2]
[346714123,1735231839173,-1545.06,0.00016991,2]
[346714124,1735231839182,-500.0,0.00016992,2]
[346714125,1735231839192,-500.0,0.00016992,2]
[346714126,1735231839201,-500.0,0.00016992,2]
[346714127,1735231839211,-525.25757993,0.00016992,2]
[346714128,1735231839222,-500.0,0.00016992,2]
[346714129,1735231839233,-500.0,0.00016992,2]
[346714130,1735231839242,-500.0,0.00016992,2]
[346714131,1735231839252,-500.0,0.00016992,2]
[346714132,1735231839262,-500.0,0.00016992,2]
[346714133,1735231839272,-500.0,0.00016992,2]
[346714134,1735231839282,-500.0,0.00016992,2]
[346714135,1735231839291,-500.0,0.00016992,2]
[346714136,1735231839301,-500.0,0.00016992,2]
[346714137,1735231839310,-500.0,0.00016992,2]
[346714138,1735231839320,-500.0,0.00016992,2]
[346714139,1735231839330,-500.00449415,0.00016992,2]
[346714140,1735231839340,-500.0,0.00016992,2]
[346714141,1735231839351,-500.0,0.00016992,2]
[346714142,1735231839361,-500.0,0.00016992,2]
[346714143,1735231839371,-500.0,0.00016992,2]
[346714144,1735231839381,-500.0,0.00016992,2]
[346714145,1735231839392,-519.83100348,0.00016992,2]
[346714146,1735231839403,-500.0,0.00016992,2]
[346714147,1735231839416,-619.54,0.00016992,2]
[346714148,1735231839426,-500.0,0.00016992,2]
[346714149,1735231839435,-500.0,0.00016992,2]
[346714150,1735231839446,-500.0,0.00016992,2]
[346714151,1735231839457,-500.0,0.00016992,2]
[346714152,1735231839466,-500.0,0.00016992,2]
[346714153,1735231839476,-500.0,0.00016992,2]
[346714154,1735231839487,-545.07,0.00016992,2]
[346714155,1735231839497,-500.0,0.00016992,2]
[346714156,1735231839507,-233.09646844,0.00016992,2]
[346714157,1735231839516,-500.0,0.00016992,2]
[346714158,1735231839526,-500.0,0.00016992,2]
[346714159,1735231839536,-500.0,0.00016992,2]
[346714160,1735231839547,-500.0,0.00016992,2]
[346714161,1735231839556,-500.0,0.00016992,2]
[346714162,1735231839566,-500.0,0.00016992,2]
[346714163,1735231839576,-192.28291104,0.00016992,2]
[346714164,1735231839587,-500.0,0.00016992,2]
[346714165,1735231839597,-500.0,0.00016992,2]
[346714166,1735231839607,-500.0,0.00016992,2]
[346714167,1735231839616,-500.0,0.00016992,2]
[346714168,1735231839626,-500.0,0.00016992,2]
[346714169,1735231839635,-500.0,0.00016992,2]
[346714170,1735231839645,-528.93,0.00016992,2]
[346714171,1735231839654,-321.92382693,0.00016992,2]
[346714172,1735231839662,-533.07510107,0.00016992,2]
[346714173,1735231839672,-500.0,0.00016992,2]
[346714174,1735231839797,-500.0,0.00016992,2]
[346714175,1735231839808,-513.66,0.00016992,2]
[346714176,1735231839818,-500.0,0.00016992,2]
[346714177,1735231839827,-318.7400967,0.00016992,2]
[346714178,1735231839836,-500.0,0.00016992,2]
[346714179,1735231839848,-500.0,0.00016992,2]
[346714180,1735231839858,-500.0,0.00016992,2]
[346714181,1735231839867,-554.49,0.00016992,2]
[346714183,1735231839877,-500.0,0.00016992,2]
[346714184,1735231839886,-500.0,0.00016992,2]
[346714186,1735231839896,-500.0,0.00016992,2]
[346714187,1735231839905,-500.0,0.00016992,2]
[346714188,1735231839915,-536.15,0.00016992,2]
[346714189,1735231839924,-500.0,0.00016992,2]
[346714190,1735231839933,-500.0,0.00016992,2]
[346714191,1735231839943,-500.0,0.00016992,2]
[346714192,1735231839952,-521.78,0.00016992,2]
[346714193,1735231839961,-500.0,0.00016992,2]
[346714194,1735231839971,-500.0,0.00016992,2]
[346714195,1735231839980,-500.0,0.00016992,2]
[346714196,1735231839989,-500.0,0.00016992,2]
[346714197,1735231839999,-500.0,0.00016992,2]
[346714198,1735231840009,-500.0,0.00016992,2]
[346714199,1735231840018,-624.21,0.00016992,2]
[346714200,1735231840027,-500.0,0.00016992,2]
[346714201,1735231840036,-500.0,0.00016992,2]
[346714202,1735231840046,-500.0,0.00016992,2]
[346714203,1735231840055,-500.0,0.00016992,2]
[346714204,1735231840064,-500.0,0.00016992,2]
[346714205,1735231840073,-500.0,0.00016992,2]
[346714206,1735231840082,-500.0,0.00016992,2]
[346714207,1735231840093,-500.0,0.00016992,2]
[346714208,1735231840102,-500.0,0.00016992,2]
[346714209,1735231840112,-500.0,0.00016992,2]
[346714210,1735231840121,-500.0,0.00016992,2]
[346714211,1735231840131,-500.0,0.00016992,2]
[346714212,1735231840141,-238.67,0.00016992,2]
[346714213,1735231840151,-500.0,0.00016992,2]
[346714214,1735231840160,-515.88,0.00016992,2]
[346714215,1735231840169,-500.0,0.00016992,2]
[346714216,1735231840179,-500.0,0.00016992,2]
[346714217,1735231840188,-500.0,0.00016992,2]
[346714218,1735231840198,-500.0,0.00016992,2]
[346714219,1735231840208,-500.0,0.00016992,2]
[346714220,1735231840217,-500.0,0.00016992,2]
[346714222,1735231840228,-500.0,0.00016992,2]
[346714223,1735231840238,-563.05,0.00016992,2]
[346714224,1735231840247,-610.45,0.00016992,2]
[346714225,1735231840257,-500.0,0.00016992,2]
[346714226,1735231840268,-500.0,0.00016992,2]
[346714227,1735231840277,-555.46832239,0.00016992,2]
[346714228,1735231840287,-500.0,0.00016992,2]
[346714229,1735231840296,-500.0,0.00016992,2]
[346714230,1735231840306,-500.0,0.00016992,2]
[346714231,1735231840315,-500.0,0.00016992,2]
[346714232,1735231840325,-500.0,0.00016992,2]
[346714233,1735231840335,-500.0,0.00016992,2]
[346714234,1735231840345,-500.0,0.00016992,2]
[346714235,1735231840355,-500.0,0.00016992,2]
[346714236,1735231840364,-500.0,0.00016992,2]
[346714237,1735231840374,-500.0,0.00016992,2]
[346714238,1735231840383,-500.0,0.00016992,2]
[346714239,1735231840393,-500.0,0.00016992,2]
[346714240,1735231840406,-1000.0,0.00016992,2]
[346714241,1735231840416,-500.0,0.00016992,2]
[346714242,1735231840426,-500.0,0.00016992,2]
[346714243,1735231840435,-500.0,0.00016992,2]
[346714244,1735231840447,-576.95295506,0.00016992,2]
[346714245,1735231840458,-500.0,0.00016992,2]
[346714246,1735231840467,-500.0,0.00016992,2]
[346714247,1735231840478,-500.0,0.00016992,2]
[346714248,1735231840488,-500.0,0.00016992,2]
[346714249,1735231840497,-510.75148912,0.00016992,2]
[346714250,1735231840507,-500.0,0.00016992,2]
[346714251,1735231840517,-503.89806055,0.00016993,2]
[346714253,1735231840527,-500.63662953,0.00016993,2]
[346714254,1735231840537,-500.0,0.00016993,2]
[346714255,1735231840547,-506.86880565,0.00016993,2]
[346714256,1735231840556,-504.08015614,0.00016993,2]
[346714257,1735231840565,-517.73075808,0.00016993,2]
[346714258,1735231840575,-581.7637746,0.00016993,2]
[346714260,1735231840584,-504.74646438,0.00016993,2]
[346714262,1735231840594,-500.0,0.00016993,2]
[346714263,1735231840603,-500.0,0.00016993,2]
[346714265,1735231840612,-500.0,0.00016993,2]
[346714267,1735231840622,-631.8613904,0.00016993,2]
[346714269,1735231840631,-500.0,0.00016993,2]
[346714270,1735231840640,-525.51709447,0.00016993,2]
[346714272,1735231840650,-648.4,0.00016993,2]
[346714273,1735231840659,-500.0,0.00016993,2]
[346714274,1735231840668,-500.0,0.00016993,2]
[346714277,1735231840677,-500.0,0.00016993,2]
[346714280,1735231840687,-500.0,0.00016993,2]
[346714282,1735231840696,-500.0,0.00016993,2]
[346714284,1735231840705,-500.0,0.00016993,2]
[346714285,1735231840715,-4082.14,0.00016993,2]
[346714286,1735231840724,-500.0,0.00016993,2]
[346714287,1735231840734,-551.51,0.00016993,2]
[346714288,1735231840743,-500.0,0.00016993,2]
[346714289,1735231840753,-500.0,0.00016993,2]
[346714290,1735231840763,-500.0,0.00016993,2]
[346714291,1735231840771,-500.0,0.00016993,2]
[346714292,1735231840780,-589.38,0.00016993,2]
[346714293,1735231840789,-500.0,0.00016993,2]
[346714294,1735231840799,-500.0,0.00016994,2]
[346714295,1735231840808,-500.0,0.00016994,2]
[346714296,1735231840817,-500.0,0.00016994,2]
[346714297,1735231840826,-500.0,0.00016994,2]
[346714298,1735231840835,-500.0,0.00016994,2]
[346714299,1735231840846,-500.0,0.00016994,2]
[346714300,1735231840855,-500.0,0.00016994,2]
[346714301,1735231840865,-500.0,0.00016994,2]
[346714302,1735231840874,-500.0,0.00016994,2]
[346714303,1735231840883,-500.0,0.00016994,2]
[346714304,1735231840893,-500.0,0.00016994,2]
[346714305,1735231840903,-500.0,0.00016994,2]
[346714306,1735231840912,-500.0,0.00016994,2]
[346714307,1735231840922,-500.0,0.00016994,2]
[346714308,1735231840932,-500.0,0.00016994,2]
[346714309,1735231840941,-500.0,0.00016994,2]
[346714310,1735231840950,-500.0,0.00016994,2]
[346714311,1735231840959,-500.0,0.00016994,2]
[346714312,1735231840969,-500.0,0.00016994,2]
[346714313,1735231840978,-616.97,0.00016994,2]
[346714314,1735231840988,-500.0,0.00016994,2]
[346714315,1735231840997,-500.0,0.00016994,2]
[346714316,1735231841007,-500.0,0.00016994,2]
[346714317,1735231841016,-500.0,0.00016994,2]
[346714318,1735231841026,-500.0,0.00016994,2]
[346714319,1735231841037,-500.0,0.00016994,2]
[346714320,1735231841046,-500.0,0.00016994,2]
[346714321,1735231841055,-500.0,0.00016994,2]
[346714322,1735231841065,-500.0,0.00016994,2]
[346714323,1735231841076,-500.0,0.00016994,2]
[346714324,1735231841085,-583.79206673,0.00016994,2]
[346714325,1735231841096,-500.0,0.00016994,2]
[346714326,1735231841105,-500.0,0.00016994,2]
[346714327,1735231841114,-500.0,0.00016994,2]
[346714328,1735231841125,-500.0,0.00016994,2]
[346714329,1735231841135,-500.0,0.00016994,2]
[346714330,1735231841144,-500.0,0.00016994,2]
[346714331,1735231841155,-500.0,0.00016994,2]
[346714332,1735231841165,-500.0,0.00016994,2]
[346714333,1735231841174,-600.38137809,0.00016994,2]
[346714334,1735231841183,-500.0,0.00016994,2]
[346714335,1735231841193,-150.0,0.00016994,2]
[346714336,1735231841203,-500.0,0.00016994,2]
[346714337,1735231841217,-2779.66,0.00016994,2]
[346714338,1735231841227,-5507.94224856,0.00017,7]
[346714339,1735231841237,-627.095,0.0001709,2]
[346714340,1735231841246,-160.58290987,0.00017121,2]
[346714341,1735231841256,-500.0,0.00017263,2]
[346714342,1735231841265,-500.0,0.00017263,2]
[346714343,1735231841274,-500.0,0.00017263,2]
[346714344,1735231841284,-500.0,0.00017263,2]
[346714345,1735231841293,-530.44492599,0.00017263,2]
[346714346,1735231841302,-500.0,0.00017263,2]
[346714347,1735231841312,-500.0,0.00017263,2]
[346714348,1735231841322,-358.11063844,0.00017263,2]
[346714349,1735231841331,-588.71,0.00017263,2]
[346714350,1735231841341,-500.0,0.00017263,2]
[346714351,1735231841351,-500.0,0.00017263,2]
[346714352,1735231841360,-500.0,0.00017263,2]
[346714353,1735231841370,-500.0,0.00017263,2]
[346714354,1735231841379,-500.0,0.00017263,2]
[346714355,1735231841389,-500.0,0.00017263,2]
[346714356,1735231841398,-500.0,0.00017263,2]
[346714357,1735231841410,-500.0,0.00017263,2]
[346714358,1735231841420,-500.0,0.00017263,2]
[346714359,1735231841430,-500.0,0.00017263,2]
[346714360,1735231841439,-393.2309031,0.00017263,2]
[346714361,1735231841449,-500.0,0.00017263,2]
[346714362,1735231841460,-500.0,0.00017263,2]
[346714363,1735231841470,-500.0,0.00017263,2]
[346714364,1735231841479,-500.0,0.00017263,2]
[346714365,1735231841489,-500.0,0.00017263,2]
[346714366,1735231841499,-500.0,0.00017263,2]
[346714367,1735231841509,-500.0,0.00017263,2]
[346714368,1735231841519,-500.0,0.00017263,2]
[346714369,1735231841528,-200.0,0.00017263,2]
[346714370,1735231841536,-499.53254753,0.00017263,2]
[346714371,1735231841546,-500.0,0.00017263,2]
[346714372,1735231841555,-934.59,0.00017263,2]
[346714373,1735231841565,-500.0,0.00017263,2]
[346714374,1735231841576,-500.0,0.00017263,2]
[346714375,1735231841585,-500.0,0.00017263,2]
[346714376,1735231841595,-500.0,0.00017263,2]
[346714377,1735231841604,-500.0,0.00017264,2]
[346714378,1735231841613,-193.03,0.00017264,2]
[346714379,1735231841623,-500.0,0.00017264,2]
[346714380,1735231841632,-500.0,0.00017264,2]
[346714381,1735231841642,-500.0,0.00017264,2]
[346714382,1735231841652,-448.87,0.00017264,2]
[346714383,1735231841661,-500.0,0.00017264,2]
[346714384,1735231841671,-500.0,0.00017264,2]
[346714385,1735231841681,-500.0,0.00017264,2]
[346714386,1735231841690,-631.0,0.00017264,2]
[346714387,1735231841699,-2786.37,0.00017264,2]
[346714388,1735231841710,-500.0,0.00017264,2]
[346714389,1735231841721,-454.52,0.00017264,2]
[346714390,1735231841731,-924.77,0.00017264,2]
[346714391,1735231841740,-1079.71,0.00017264,2]
[346714392,1735231841750,-500.0,0.00017264,2]
[346714393,1735231841846,-4862.66,0.00017264,2]
[346714394,1735231841856,-568.97,0.00017264,2]
[346714395,1735231841866,-1365.26,0.00017264,2]
[346714396,1735231841876,-500.0,0.00017264,2]
[346714397,1735231841885,-500.0,0.00017264,2]
[346714398,1735231841894,-1792.93,0.00017264,2]
[346714399,1735231841904,-559.92,0.00017264,2]
[346714400,1735231841913,-500.0,0.00017264,2]
[346714401,1735231841922,-500.0,0.00017264,2]
[346714402,1735231841931,-417.48,0.00017264,2]
[346714403,1735231841940,-441.81,0.00017264,2]
[346714404,1735231841949,-622.13,0.00017264,2]
[346714405,1735231841959,-963.71,0.00017264,2]
[346714406,1735231841968,-587.52,0.00017264,2]
[346714407,1735231841977,-680.1,0.00017264,2]
[346714408,1735231841987,-578.71,0.00017264,2]
[346714409,1735231841997,-500.0,0.00017264,2]
[346714410,1735231842006,-558.08,0.00017264,2]
[346714411,1735231842016,-625.45,0.00017264,2]
[346714412,1735231842025,-500.0,0.00017264,2]
[346714413,1735231842034,-500.0,0.00017265,2]
[346714414,1735231842044,-500.0,0.00017265,2]
[346714415,1735231842054,-500.0,0.00017265,2]
[346714416,1735231842063,-500.0,0.00017265,2]
[346714417,1735231842071,-500.0,0.00017265,2]
[346714418,1735231842080,-500.0,0.00017265,2]
[346714419,1735231842090,-729.96,0.00017265,2]
[346714420,1735231842100,-500.0,0.00017265,2]
[346714421,1735231842109,-165.26,0.00017265,2]
[346714422,1735231842119,-6739.59307399,0.00017265,2]
[346714423,1735231842173,-703.40105698,0.00017265,2]
[346714424,1735231842185,-7846.30586903,0.00017265,2]
[346714425,1735231842195,-196.24,0.00017265,2]
[346714426,1735231842204,-500.0,0.00017265,2]
[346714427,1735231842213,-551.49,0.00017265,2]
[346714428,1735231842222,-1545.06,0.00017265,2]
[346714429,1735231842232,-500.0,0.00017266,2]
[346714430,1735231842241,-500.0,0.00017266,2]
[346714431,1735231842251,-500.0,0.00017266,2]
[346714432,1735231842260,-500.0,0.00017266,2]
[346714433,1735231842270,-500.0,0.00017266,2]
[346714434,1735231842279,-500.0,0.00017266,2]
[346714435,1735231842289,-500.0,0.00017266,2]
[346714436,1735231842299,-500.0,0.00017266,2]
[346714437,1735231842308,-500.0,0.00017266,2]
[346714438,1735231842317,-500.0,0.00017266,2]
[346714439,1735231842327,-500.0,0.00017266,2]
[346714440,1735231842337,-500.0,0.00017266,2]
[346714441,1735231842346,-359.06120376,0.00017266,2]
[346714442,1735231842356,-386.21,0.00017266,2]
[346714443,1735231842366,-601.4,0.00017266,2]
[346714444,1735231842375,-521.78,0.00017266,2]
[346714445,1735231842384,-500.0,0.00017266,2]
[346714446,1735231842394,-500.0,0.00017266,2]
[346714447,1735231842404,-500.0,0.00017266,2]
[346714448,1735231842416,-500.0,0.00017266,2]
[346714449,1735231842425,-610.45,0.00017266,2]
[346714450,1735231842435,-500.0,0.00017266,2]
[346714451,1735231842446,-372.68,0.00017266,2]
[346714452,1735231842455,-219.28873151,0.00017267,2]
[346714453,1735231842465,-234.14,0.00017267,2]
[346714454,1735231842475,-4082.14,0.00017267,2]
[346714455,1735231842485,-460.3,0.00017267,2]
[346714456,1735231842495,-551.51,0.00017267,2]
[346714457,1735231842505,-500.0,0.00017267,2]
[346714458,1735231842514,-319.35,0.00017268,2]
[346714459,1735231842524,-500.0,0.00017268,2]
[346714460,1735231842533,-505.12039456,0.00017268,2]
[346714461,1735231842543,-500.0,0.00017268,2]
[346714462,1735231842554,-518.57263692,0.00017268,2]
[346714463,1735231842563,-2079.62557906,0.00017268,2]
[346714464,1735231842576,-700.03442094,0.00017268,2]
[346714465,1735231842586,-160.58290987,0.00017347,2]
[346714466,1735231842595,-934.59,0.00017537,2]
[346714467,1735231842605,-500.0,0.00017538,2]
[346714468,1735231842615,-500.0,0.00017538,2]
[346714469,1735231842624,-500.0,0.00017538,2]
[346714470,1735231842633,-70.79266919,0.00017538,2]
[346714501,1735231843663,-259.43985824,0.00016989,2]
[346714502,1735231843672,-429.20733081,0.00017538,2]
[346714503,1735231843682,-500.0,0.00017538,2]
[346714504,1735231843692,-500.0,0.00017538,2]
[346714505,1735231843701,-239.03984418,0.00017538,2]
[346714506,1735231843712,-162.3305188,0.00017538,2]
[346714507,1735231843721,-296.3882522,0.00017538,2]
[346714508,1735231843733,-2489.9817478,0.00017538,2]
[346714509,1735231843742,-171.97,0.00017538,2]
[346714510,1735231843751,-924.77,0.00017538,2]
[346714511,1735231843761,-1050.88615936,0.00017538,2]
[346714512,1735231843772,-28.82384064,0.00017538,2]
[346714513,1735231843782,-301.60341154,0.00017538,2]
[346714514,1735231843791,-4862.66,0.00017538,2]
[346714515,1735231843800,-568.97,0.00017538,2]
[346714516,1735231843810,-1365.26,0.00017538,2]
[346714517,1735231843820,-500.0,0.00017538,2]
[346714518,1735231843829,-500.0,0.00017538,2]
[346714519,1735231843839,-308.29846158,0.00017538,2]
[346714520,1735231843851,-721.269991,0.00017538,2]
[346714543,1735231846526,-500.0,0.00016989,2]
[346714545,1735231846536,-500.0,0.00016989,2]
[346714547,1735231846546,-500.0,0.00016991,2]
[346714549,1735231846555,-763.36154742,0.00017538,2]
[346714551,1735231846565,-559.92,0.00017538,2]
[346714553,1735231846574,-341.23790739,0.00017538,2]
[346714555,1735231846586,-158.76209261,0.00017538,2]
[346714557,1735231846597,-500.0,0.00017538,2]
[346714559,1735231846606,-622.13,0.00017538,2]
[346714562,1735231846617,-963.71,0.00017538,2]
[346714564,1735231846626,-587.52,0.00017538,2]
[346714566,1735231846636,-680.1,0.00017538,2]
[346714569,1735231846645,-500.0,0.00017538,2]
[346714572,1735231846655,-558.08,0.00017538,2]
[346714575,1735231846664,-500.0,0.00017538,2]
[346714578,1735231846673,-419.34,0.00017539,2]
[346714581,1735231846682,-729.96,0.00017539,2]
[346714584,1735231846692,-500.0,0.00017539,2]
[346714587,1735231846701,-6688.36830739,0.00017539,2]
[346714590,1735231846713,-1032.54940778,0.00017539,2]
[346714736,1735232376142,2008.0,0.00023,120]
[346714737,1735232680433,500.0,0.00020546,120]
[346714738,1735232829244,-194.83741137,0.00013833,2]
[346714739,1735232830091,-139.65348273,0.00013833,2]
[346714740,1735232830113,-263.7070017,0.00013973,2]
[346714741,1735232837148,-136.2929983,0.00013973,2]
[346714742,1735232837171,-334.4908941,0.00015716,2]
[346714743,1735232837194,-250.0,0.00015766,2]
[346714744,1735232837216,-186.794675,0.00015991,2]
[346714745,1735232837238,-274.41798302,0.00016,2]
[346714746,1735232837261,-174.01257794,0.0001689,2]
[346714747,1735232837283,-300.0,0.00016986,2]
[346714748,1735232837306,-300.0,0.00016986,2]
[346714749,1735232837328,-500.0,0.00016987,2]
[346714750,1735232837349,-500.0,0.00016987,2]
[346714751,1735232837371,-500.0,0.00016987,2]
[346714752,1735232837395,-201.56078784,0.00016987,2]
[346714753,1735232837419,-375.53298861,0.00016987,2]
[346714754,1735232927198,19295.0,0.00023,120]
[346714755,1735232961084,-232.49936122,0.00016648,2]
[346714756,1735232974097,-258.49448365,0.00016648,2]
[346714797,1735233032754,-490.99384487,0.00016816,2]
[346714799,1735233032764,-161.76067712,0.00016888,2]
[346714800,1735233032776,-29.64867099,0.00016888,2]
[346714801,1735233032785,-300.0,0.00016986,2]
[346714802,1735233032798,-300.0,0.00016986,2]
[346714803,1735233032807,-124.46701139,0.00016987,2]
[346714804,1735233032817,-500.0,0.00016987,2]
[346714805,1735233032828,-500.0,0.00016987,2]
[346714806,1735233032839,-500.0,0.00016987,2]
[346714807,1735233032850,-500.0,0.00016987,2]
[346714808,1735233032859,-169.57109915,0.00016987,2]
[346714809,1735233032870,-500.0,0.00016987,2]
[346714810,1735233032880,-365.38650085,0.00016987,2]
[346714811,1735233032889,-500.0,0.00016987,2]
[346714812,1735233032899,-500.0,0.00016987,2]
[346714813,1735233032910,-500.0,0.00016987,2]
[346714814,1735233032921,-500.0,0.00016987,2]
[346714815,1735233032931,-500.0,0.00016987,2]
[346714816,1735233032941,-500.0,0.00016987,2]
[346714817,1735233032951,-272.53986918,0.00016987,2]
[346714818,1735233032961,-500.0,0.00016987,2]
[346714819,1735233032971,-500.0,0.00016987,2]
[346714820,1735233032981,-241.08659235,0.00016987,2]
[346714821,1735233032990,-265.05975475,0.00016987,2]
[346714884,1735233038620,-234.94024525,0.00016987,2]
[346714885,1735233038630,-500.0,0.00016987,2]
[346714886,1735233038639,-500.0,0.00016987,2]
[346714887,1735233038648,-500.0,0.00016987,2]
[346714888,1735233038658,-500.0,0.00016987,2]
[346714889,1735233038667,-500.0,0.00016987,2]
[346714890,1735233038677,-500.0,0.00016987,2]
[346714892,1735233038686,-180.735,0.00016987,2]
[346714894,1735233038695,-500.0,0.00016987,2]
[346714896,1735233038705,-500.0,0.00016987,2]
[346714897,1735233038714,-500.0,0.00016987,2]
[346714898,1735233038723,-313.25508262,0.00016987,2]
[346714899,1735233038732,-4317.32,0.00016987,2]
[346714900,1735233038742,-500.0,0.00016987,2]
[346714901,1735233038751,-500.0,0.00016987,2]
[346714902,1735233038760,-500.0,0.00016987,2]
[346714904,1735233038769,-461.96985748,0.00016987,2]
[346714907,1735233038781,-1295.85014252,0.00016987,2]
[346714908,1735233038791,-500.0,0.00016987,2]
[346714909,1735233038803,-500.0,0.00016987,2]
[346714910,1735233038814,-500.0,0.00016987,2]
[346714911,1735233038824,-899.78,0.00016987,2]
[346714912,1735233038835,-500.0,0.00016987,2]
[346714913,1735233038844,-934.28,0.00016987,2]
[346714914,1735233038858,-500.0,0.00016987,2]
[346714915,1735233038873,-500.0,0.00016987,2]
[346714916,1735233038887,-344.30525416,0.00016988,2]
[346714917,1735233038900,-500.0,0.00016988,2]
[346714919,1735233038912,-500.0,0.00016988,2]
[346714921,1735233038926,-500.0,0.00016988,2]
[346714923,1735233038940,-500.0,0.00016988,2]
[346714925,1735233038953,-500.0,0.00016988,2]
[346714928,1735233038967,-500.0,0.00016988,2]
[346714930,1735233038980,-440.7001434,0.00016988,2]
[346714932,1735233038993,-500.0,0.00016988,2]
[346714934,1735233039008,-500.0,0.00016988,2]
[346714935,1735233039020,-500.0,0.00016988,2]
[346714936,1735233039032,-501.42068149,0.00016988,2]
[346714937,1735233039045,-500.0,0.00016988,2]
[346714938,1735233039059,-500.0,0.00016988,2]
[346714939,1735233039073,-500.0,0.00016988,2]
[346714940,1735233039085,-500.0,0.00016988,2]
[346714941,1735233039097,-500.0,0.00016988,2]
[346714942,1735233039108,-500.0,0.00016988,2]
[346714943,1735233039121,-500.0,0.00016988,2]
[346714944,1735233039133,-502.71894693,0.00016988,2]
[346714945,1735233039146,-550.62957544,0.00016988,2]
[346714946,1735233039159,-500.0,0.00016988,2]
[346714947,1735233039172,-500.0,0.00016988,2]
[346714948,1735233039185,-500.0,0.00016988,2]
[346714949,1735233039200,-500.0,0.00016988,2]
[346714950,1735233039214,-500.0,0.00016988,2]
[346714951,1735233039225,-500.0,0.00016988,2]
[346714952,1735233039235,-500.0,0.00016988,2]
[346714953,1735233039246,-500.0,0.00016988,2]
[346714954,1735233039258,-500.0,0.00016988,2]
[346714955,1735233039272,-500.0,0.00016988,2]
[346714956,1735233039285,-500.0,0.00016988,2]
[346714957,1735233039296,-500.0,0.00016988,2]
[346714958,1735233039307,-500.0,0.00016988,2]
[346714959,1735233039319,-242.53986151,0.00016988,2]
[346714960,1735233039351,-257.46013849,0.00016988,2]
[346714961,1735233039362,-500.0,0.00016988,2]
[346714962,1735233039373,-500.0,0.00016988,2]
[346714963,1735233039385,-500.0,0.00016988,2]
[346714964,1735233039398,-314.75575371,0.00016988,2]